bitfinex/quotes_SOLUSD_20240613
["timestamp","ask_amount","ask_price","bid_price","bid_amount"]
[1718263567641,8.31,151.99,151.94,0.17]
[1718263567830,8.31,151.99,151.94,8.48]
[1718263570753,8.31,151.99,151.94,0.17]
[1718263571040,8.31,151.99,151.94,8.65]
[1718263571435,8.31,151.99,151.94,8.48]
[1718263571632,8.31,151.99,151.93,15.8709]
[1718263571633,8.31,151.96,151.93,15.8709]
[1718263571834,8.31,151.95,151.93,15.8709]
[1718263572434,8.31,151.96,151.93,15.8709]
[1718263572750,8.31,151.95,151.91,0.17]
[1718263572917,8.31,151.95,151.91,0.34]
[1718263573124,8.31,151.94,151.89,16.2528607]
[1718263573317,6.4256,151.98,151.89,1.1442607]
[1718263573518,8.31,151.91,151.89,1.1442607]
[1718263573727,8.31,151.92,151.89,1.1442607]
[1718263574249,20.0,151.97,151.89,1.1442607]
[1718263574423,8.31,151.92,151.89,1.1442607]
[1718263574842,8.31,151.93,151.89,1.1442607]
[1718263575141,8.31,151.94,151.89,1.1442607]
[1718263575539,8.31,151.94,151.9,0.17]
[1718263576825,8.31,151.94,151.89,1.1442607]
[1718263577222,6.86912976,151.99,151.9,22.4941]
[1718263577430,8.31,151.97,151.92,0.17]
[1718263577620,8.31,151.95,151.9,22.3241]
[1718263577820,8.31,151.94,151.9,22.3241]
[1718263578043,8.31,151.95,151.9,22.3241]
[1718263580543,33.24,152.0,151.91,0.34]
[1718263580750,8.31,151.95,151.91,0.34]
[1718263581060,8.31,151.96,151.91,0.34]
[1718263581533,33.24,152.0,151.91,0.34]
[1718263581733,8.31,151.95,151.91,0.34]
[1718263581926,8.31,151.95,151.9,22.3241]
[1718263582642,8.31,151.93,151.9,16.2301]
[1718263583447,8.31,151.92,151.9,16.2301]
[1718263583827,8.31,151.93,151.9,16.2301]
[1718263588830,8.31,151.92,151.9,16.2301]
[1718263589546,8.31,151.92,151.89,1.1442607]
[1718263589750,16.2112,151.97,151.89,1.1442607]
[1718263589751,8.31,151.91,151.89,1.1442607]
[1718263590429,8.31,151.92,151.89,1.1442607]
[1718263593553,8.31,151.93,151.89,1.1442607]
[1718263595637,8.31,151.92,151.89,1.1442607]
[1718263597262,8.31,151.93,151.89,1.1442607]
[1718263599358,16.2112,151.97,151.89,1.1442607]
[1718263599359,8.31,151.92,151.89,1.1442607]
[1718263605442,8.31,151.91,151.89,1.1442607]
[1718263608571,8.31,151.92,151.89,1.1442607]
[1718263610353,22.3502,151.97,151.89,1.1442607]
[1718263610549,8.31,151.94,151.89,9.4542607]
[1718263610749,8.31,151.95,151.89,9.4542607]
[1718263612657,6.86356883,151.99,151.9,0.17]
[1718263612855,8.31,151.94,151.9,0.34]
[1718263613260,8.31,151.93,151.89,1.1442607]
[1718263613565,8.31,151.92,151.89,1.1442607]
[1718263614280,8.31,151.91,151.89,1.1442607]
[1718263614483,8.31,151.9,151.89,1.1442607]
[1718263615185,8.31,151.9,151.86,16.3683]
[1718263615473,22.9264,151.95,151.86,16.3683]
[1718263615683,8.31,151.9,151.86,16.3683]
[1718263618679,8.31,151.89,151.86,16.3683]
[1718263620582,8.31,151.88,151.86,16.3683]
[1718263621358,6.86335001,151.94,151.86,24.6783]
[1718263621684,8.31,151.9,151.86,16.3683]
[1718263622684,8.31,151.89,151.86,16.3683]
[1718263623485,8.31,151.87,151.85,1.14501606]
[1718263623787,8.31,151.86,151.85,1.14501606]
[1718263624976,33.24,151.92,151.85,1.14501606]
[1718263625183,8.31,151.87,151.85,1.14501606]
[1718263625766,8.31,151.88,151.85,1.14501606]
[1718263626463,8.31,151.87,151.85,1.14501606]
[1718263628592,8.31,151.86,151.82,15.3547]
[1718263628799,8.31,151.84,151.82,15.3547]
[1718263631175,8.31,151.86,151.82,15.3547]
[1718263633588,33.24,151.92,151.83,0.51]
[1718263633589,8.31,151.88,151.83,0.51]
[1718263633805,22.9264,151.95,151.85,0.17]
[1718263633806,8.31,151.89,151.85,0.17]
[1718263634374,8.31,151.9,151.85,8.48]
[1718263634579,8.31,151.9,151.86,0.17]
[1718263635489,8.31,151.9,151.85,8.65]
[1718263636489,42.7617,151.98,151.87,0.17]
[1718263636674,8.31,151.93,151.87,8.65]
[1718263636875,29.62131432,151.98,151.89,0.17]
[1718263637115,8.31,151.94,151.89,0.17]
[1718263637687,8.31,151.95,151.91,0.17]
[1718263637871,8.31,151.95,151.9,0.17]
[1718263638071,8.31,151.95,151.9,0.34]
[1718263640092,22.7617,151.98,151.9,0.34]
[1718263640294,8.31,151.95,151.9,0.34]
[1718263642582,22.7617,151.98,151.9,0.34]
[1718263642785,8.31,151.95,151.9,0.34]
[1718263643473,22.7617,151.98,151.88,15.5277]
[1718263643691,8.31,151.91,151.88,15.5277]
[1718263643906,8.31,151.9,151.88,15.5277]
[1718263644069,8.31,151.9,151.85,8.31]
[1718263645303,8.31,151.9,151.86,0.17]
[1718263645469,8.31,151.9,151.86,0.34]
[1718263646997,8.31,151.9,151.86,0.17]
[1718263647201,8.31,151.9,151.85,8.65]
[1718263647997,8.31,151.9,151.85,0.34]
[1718263648308,8.31,151.9,151.85,8.65]
[1718263649293,8.31,151.89,151.85,0.34]
[1718263649500,8.31,151.89,151.85,0.17]
[1718263650484,6.86171578,151.96,151.85,0.17]
[1718263650806,8.31,151.9,151.85,8.99]
[1718263650985,6.86171578,151.96,151.85,8.99]
[1718263651173,8.31,151.9,151.85,8.99]
[1718263651378,8.31,151.91,151.86,8.31]
[1718263654893,6.86171578,151.96,151.87,0.17]
[1718263655109,8.31,151.91,151.87,0.34]
[1718263655302,8.31,151.91,151.85,8.65]
[1718263655608,8.31,151.91,151.86,0.34]
[1718263655928,6.86171578,151.96,151.86,0.34]
[1718263656139,8.31,151.91,151.86,0.34]
[1718263656434,8.31,151.91,151.87,0.17]
[1718263656712,8.31,151.91,151.88,0.17]
[1718263656916,8.31,151.91,151.87,0.17]
[1718263658641,6.86171578,151.96,151.87,0.17]
[1718263658930,8.31,151.92,151.87,0.17]
[1718263660129,20.0,151.95,151.87,8.48]
[1718263660304,8.31,151.93,151.89,0.17]
[1718263660507,8.31,151.94,151.89,0.17]
[1718263660706,8.31,151.94,151.89,0.56832234]
[1718263661032,8.31,151.94,151.89,0.17]
[1718263661535,8.31,151.93,151.86,0.51]
[1718263661823,8.31,151.91,151.87,0.17]
[1718263662520,8.31,151.93,151.88,8.31]
[1718263662821,8.31,151.94,151.89,24.5701]
[1718263663019,8.31,151.96,151.91,0.17]
[1718263663219,254.3,152.0,151.91,0.17]
[1718263663415,8.31,151.96,151.91,0.17]
[1718263663615,8.31,151.96,151.91,8.48]
[1718263665231,8.31,151.96,151.91,0.17]
[1718263665716,40.100715,152.0,151.91,0.17]
[1718263666031,8.31,151.96,151.91,0.17]
[1718263669533,8.31,151.95,151.9,0.34]
[1718263669733,8.31,151.94,151.9,0.34]
[1718263670233,8.31,151.94,151.9,0.17]
[1718263671709,40.100715,152.0,151.89,22.5811]
[1718263671927,8.31,151.93,151.89,22.5811]
[1718263672631,8.31,151.92,151.89,16.0901]
[1718263673909,6.86180079,151.97,151.9,0.17]
[1718263674116,33.24,152.0,151.9,0.68]
[1718263674328,8.31,151.94,151.9,0.68]
[1718263674907,26.86097077,151.99,151.9,0.68]
[1718263675112,8.31,151.94,151.9,0.68]
[1718263675327,8.31,151.94,151.89,16.0901]
[1718263675518,8.31,151.93,151.89,16.0901]
[1718263678141,26.86097077,151.99,151.89,16.0901]
[1718263678338,8.31,151.94,151.89,16.0901]
[1718263678633,8.31,151.94,151.89,24.4001]
[1718263679015,8.31,151.94,151.89,16.0901]
[1718263679215,26.86097077,151.99,151.89,16.0901]
[1718263679432,8.31,151.94,151.89,16.0901]
[1718263679813,8.31,151.93,151.89,16.0901]
[1718263680824,8.31,151.95,151.9,0.34]
[1718263681340,6.86097077,151.99,151.92,8.48]
[1718263681660,8.31,151.98,151.93,0.17]
[1718263682017,6.85900272,152.03,151.93,0.34]
[1718263682213,6.85900272,152.03,151.94,0.17]
[1718263682214,20.0,152.02,151.94,0.17]
[1718263682437,8.31,151.99,151.94,0.17]
[1718263682950,20.0,152.02,151.94,0.34]
[1718263683126,8.31,151.99,151.95,0.17]
[1718263683750,8.31,151.98,151.94,15.8622]
[1718263683953,8.31,151.98,151.94,15.6922]
[1718263684319,20.0,152.02,151.94,15.6922]
[1718263684536,8.31,151.98,151.94,15.6922]
[1718263684817,8.31,151.97,151.94,15.6922]
[1718263685233,8.31,151.98,151.94,15.6922]
[1718263687172,20.0,152.02,151.94,15.6922]
[1718263687448,8.31,151.98,151.94,15.6922]
[1718263687628,8.31,151.99,151.94,15.6922]
[1718263687830,8.31,151.98,151.94,15.6922]
[1718263689645,20.0,152.02,151.94,15.6922]
[1718263689845,8.31,151.98,151.94,15.6922]
[1718263692458,20.0,152.02,151.94,15.6922]
[1718263692649,8.31,151.98,151.94,15.6922]
[1718263695143,20.0,152.02,151.94,15.6922]
[1718263695344,8.31,151.98,151.94,15.6922]
[1718263695540,8.31,151.99,151.94,15.6922]
[1718263695765,8.31,151.99,151.95,0.17]
[1718263696670,8.31,152.0,151.95,0.17]
[1718263697193,8.31,151.99,151.95,0.17]
[1718263698665,20.0,152.02,151.95,0.17]
[1718263698857,8.31,151.99,151.95,0.17]
[1718263699043,20.0,152.02,151.95,0.17]
[1718263699244,8.31,151.99,151.95,0.17]
[1718263700340,20.0,152.02,151.95,0.17]
[1718263700662,8.31,152.0,151.95,0.17]
[1718263701669,8.31,151.99,151.95,0.17]
[1718263702051,20.0,152.02,151.95,0.17]
[1718263702554,8.31,151.99,151.95,0.17]
[1718263704074,8.31,151.99,151.94,15.6922]
[1718263704677,8.31,151.98,151.94,15.6922]
[1718263705272,8.31,151.97,151.94,15.5222]
[1718263705449,8.31,151.96,151.94,15.5222]
[1718263706869,8.31,151.96,151.91,6.4361]
[1718263707073,8.31,151.94,151.91,6.4361]
[1718263708957,8.31,151.94,151.9,15.3807]
[1718263709172,8.31,151.93,151.9,15.3807]
[1718263709562,8.31,151.93,151.88,8.31]
[1718263709563,85.9568581,152.0,151.87,6.1709]
[1718263709864,8.31,151.92,151.87,6.1709]
[1718263710075,8.31,151.91,151.87,6.1709]
[1718263710648,60.17,151.99,151.87,6.1709]
[1718263710880,8.31,151.91,151.87,6.1709]
[1718263716356,20.68,151.99,151.88,0.17]
[1718263716560,20.68,151.99,151.88,8.65]
[1718263716561,8.31,151.93,151.88,8.65]
[1718263718858,20.0,151.99,151.89,8.31]
[1718263719065,20.0,151.99,151.91,0.17]
[1718263719264,8.31,151.95,151.91,0.17]
[1718263720684,8.31,151.94,151.91,0.17]
[1718263722981,0.17,151.91,151.83,1.1436527]
[1718263723189,8.31,151.84,151.83,1.1436527]
[1718263723360,8.31,151.84,151.78,15.7662]
[1718263723560,8.31,151.81,151.78,15.7662]
[1718263725498,16.2293,151.88,151.79,0.17]
[1718263725662,8.31,151.83,151.79,0.34]
[1718263731181,8.31,151.82,151.79,0.34]
[1718263732692,8.31,151.83,151.79,0.34]
[1718263733778,6.86357455,151.9,151.79,0.34]
[1718263733986,20.17,151.89,151.79,0.34]
[1718263734179,8.31,151.83,151.79,0.34]
[1718263734483,8.31,151.82,151.78,15.7662]
[1718263734681,21.4623,151.88,151.78,15.7662]
[1718263734682,8.31,151.81,151.78,15.7662]
[1718263737187,8.31,151.82,151.78,15.7662]
[1718263740003,21.4623,151.88,151.78,15.7662]
[1718263740179,8.31,151.82,151.78,15.7662]
[1718263741214,8.31,151.82,151.79,0.17]
[1718263741382,20.0,151.89,151.81,0.17]
[1718263741588,20.0,151.89,151.81,8.65]
[1718263741916,8.31,151.86,151.81,8.65]
[1718263742679,8.31,151.85,151.81,0.34]
[1718263742899,8.31,151.85,151.8,8.65]
[1718263744523,8.31,151.82,151.78,15.7662]
[1718263745317,7.03389919,151.88,151.78,15.7662]
[1718263745492,8.31,151.82,151.78,15.7662]
[1718263749815,0.34,151.87,151.78,15.7662]
[1718263750018,8.31,151.82,151.78,15.7662]
[1718263756614,20.0,151.89,151.8,8.31]
[1718263756917,6.86021655,151.89,151.81,0.17]
[1718263757097,8.31,151.86,151.81,8.65]
[1718263759005,6.86021655,151.89,151.81,8.65]
[1718263759212,6.86021655,151.89,151.81,108.65]
[1718263759410,56.2608,151.92,151.83,24.1646]
[1718263759612,8.31,151.89,151.84,8.48]
[1718263759921,8.31,151.88,151.84,0.17]
[1718263760109,8.31,151.88,151.83,24.1646]
[1718263760302,6.85963828,151.91,151.83,24.1646]
[1718263763120,8.31,151.89,151.84,8.48]
[1718263763626,6.85963828,151.91,151.84,8.48]
[1718263763833,8.31,151.89,151.84,8.48]
[1718263764331,254.3,151.94,151.85,0.17]
[1718263764519,8.31,151.89,151.85,0.17]
[1718263765234,6.86123078,151.91,151.85,8.31]
[1718263765551,8.31,151.89,151.84,8.65]
[1718263766101,6.86123078,151.91,151.84,8.65]
[1718263766531,8.31,151.9,151.84,8.65]
[1718263767920,8.31,151.89,151.84,0.34]
[1718263768705,6.86123078,151.91,151.84,8.65]
[1718263768706,8.31,151.9,151.84,8.65]
[1718263768932,8.31,151.89,151.84,8.65]
[1718263771334,6.86123078,151.91,151.84,8.65]
[1718263771524,8.31,151.9,151.84,8.65]
[1718263772817,8.31,151.9,151.85,8.31]
[1718263774018,6.86203685,151.93,151.86,0.34]
[1718263774425,8.31,151.9,151.86,0.34]
[1718263775538,8.31,151.9,151.86,0.17]
[1718263775927,8.31,151.9,151.85,0.34]
[1718263777822,8.31,151.89,151.85,0.34]
[1718263778029,8.31,151.89,151.85,0.17]
[1718263778713,8.31,151.92,151.83,15.6846]
[1718263778909,8.31,151.87,151.83,15.6846]
[1718263779113,33.24,151.92,151.83,15.6846]
[1718263779335,8.31,151.87,151.83,15.6846]
[1718263779529,8.31,151.88,151.83,15.6846]
[1718263779727,8.31,151.89,151.83,23.9946]
[1718263780043,8.31,151.89,151.84,0.34]
[1718263781626,8.31,151.87,151.83,15.6846]
[1718263781829,8.31,151.88,151.83,15.6846]
[1718263783438,6.85553793,151.91,151.83,15.6846]
[1718263783640,8.31,151.88,151.83,15.6846]
[1718263784339,6.85553793,151.91,151.84,0.17]
[1718263784531,8.31,151.88,151.84,0.17]
[1718263784745,8.31,151.88,151.83,23.9946]
[1718263785031,8.31,151.88,151.83,15.6846]
[1718263787527,8.31,151.88,151.83,23.9946]
[1718263788342,8.31,151.88,151.83,15.6846]
[1718263789646,8.31,151.86,151.83,15.6846]
[1718263789951,8.31,151.84,151.83,15.6846]
[1718263790126,8.31,151.85,151.83,15.6846]
[1718263800652,8.31,151.86,151.83,15.6846]
[1718263801445,6.85326553,151.88,151.83,15.6846]
[1718263801643,8.31,151.85,151.83,15.6846]
[1718263803160,8.31,151.86,151.83,15.6846]
[1718263804169,6.85326553,151.88,151.83,15.6846]
[1718263804351,8.31,151.86,151.79,16.2172]
[1718263804550,8.31,151.85,151.8,0.17]
[1718263804742,8.31,151.84,151.8,0.17]
[1718263806052,6.85326553,151.88,151.79,16.0472]
[1718263806235,8.31,151.81,151.79,16.0472]
[1718263807861,8.31,151.81,151.76,1.14467363]
[1718263808364,8.31,151.78,151.75,15.7417]
[1718263810766,8.31,151.79,151.75,15.7417]
[1718263811659,38.37989469,151.84,151.75,15.7417]
[1718263811870,8.31,151.79,151.76,0.17]
[1718263812171,8.31,151.81,151.76,8.48]
[1718263812858,28.04013928,151.86,151.76,8.48]
[1718263813037,8.31,151.81,151.76,8.48]
[1718263813364,22.7458,151.86,151.77,8.31]
[1718263813553,8.31,151.84,151.78,8.65]
[1718263814363,6.85126658,151.87,151.78,8.65]
[1718263814663,8.31,151.84,151.78,8.65]
[1718263814863,8.31,151.83,151.78,8.65]
[1718263815247,8.31,151.83,151.78,8.48]
[1718263815446,32.10535339,152.06,151.88,0.17]
[1718263815647,106.2837,152.1,151.95,2.4348]
[1718263815648,8.31,152.0,151.95,2.4348]
[1718263815972,8.31,152.0,151.94,2.605]
[1718263816166,8.31,152.0,151.94,10.915]
[1718263816352,8.31,152.0,151.95,2.435]
[1718263816664,44.83913881,152.07,151.96,0.17]
[1718263816974,8.31,152.02,151.97,10.7446]
[1718263817314,8.31,152.02,151.97,8.31]
[1718263817451,39.49,152.07,151.97,8.31]
[1718263817644,8.31,152.02,151.97,8.31]
[1718263818855,8.31,152.03,151.97,8.31]
[1718263819060,8.08134489,152.03,151.98,8.31]
[1718263820068,8.31,152.04,151.98,8.31]
[1718263820263,8.31,152.04,151.99,8.31]
[1718263821980,8.31,152.04,151.98,10.7445]
[1718263822475,8.31,152.04,151.99,1.31574658]
[1718263822676,45.7737,152.1,151.99,1.31574658]
[1718263822875,45.7737,152.1,151.97,100.0]
[1718263822876,8.31,152.05,152.0,10.7441]
[1718263823060,20.68,152.09,152.0,10.7441]
[1718263823261,8.31,152.05,152.0,10.7441]
[1718263823786,8.31,152.04,151.99,10.7443]
[1718263824184,33.24,152.08,151.99,10.7443]
[1718263825570,8.31,152.06,152.01,8.31]
[1718263825974,0.51,152.09,152.01,8.31]
[1718263826179,8.31,152.07,152.01,8.31]
[1718263827380,0.34,152.09,152.01,8.31]
[1718263827590,8.31,152.02,151.96,22.2298]
[1718263827794,8.31,152.0,151.94,8.48]
[1718263828159,8.31,152.0,151.94,16.79]
[1718263828884,73.07,152.08,151.92,22.9173]
[1718263828885,39.49,152.03,151.92,22.9173]
[1718263829065,25.11,152.01,151.88,22.5488]
[1718263829386,64.6,152.01,151.9,2.4358]
[1718263829582,20.51,152.0,151.9,2.4358]
[1718263829772,20.51,152.0,151.91,2.4356]
[1718263829965,20.51,152.0,151.9,2.4357]
[1718263830170,20.51,152.0,151.91,2.4356]
[1718263832978,20.51,152.0,151.92,2.4354]
[1718263833863,27.3523038,152.0,151.92,2.4354]
[1718263835885,0.17,151.96,151.84,22.8711]
[1718263836101,24.94,151.95,151.84,22.8711]
[1718263836265,24.94,151.95,151.88,2.4361]
[1718263836588,0.68,151.96,151.85,100.0]
[1718263836589,0.51,151.96,151.85,100.0]
[1718263836793,0.51,151.96,151.89,2.4358]
[1718263837000,0.17,151.96,151.9,2.4356]
[1718263837320,39.49,151.97,151.9,2.4356]
[1718263838367,39.49,151.97,151.89,2.4358]
[1718263840275,39.49,151.97,151.88,2.436]
[1718263840684,39.49,151.97,151.87,2.4362]
[1718263840685,0.34,151.96,151.87,2.4362]
[1718263840885,0.34,151.95,151.87,2.4362]
[1718263841397,6.6474,151.94,151.87,2.4362]
[1718263843466,6.6474,151.94,151.88,2.4361]
[1718263844199,6.6474,151.94,151.87,2.4362]
[1718263844904,6.6474,151.94,151.85,0.17]
[1718263845405,6.6474,151.94,151.85,100.17]
[1718263845581,6.6474,151.94,151.86,0.17]
[1718263846680,6.83752556,151.96,151.87,100.17]
[1718263846905,22.2889,151.98,151.89,0.17]
[1718263849011,0.17,151.97,151.86,0.17]
[1718263849190,0.51,151.97,151.86,0.68]
[1718263849595,64.94,151.97,151.85,0.17]
[1718263849789,64.94,151.97,151.85,0.68]
[1718263850502,25.45,151.97,151.85,0.68]
[1718263851018,8.32,151.93,151.87,8.32]
[1718263851397,8.32,151.93,151.85,0.51]
[1718263851598,8.32,151.92,151.87,8.32]
[1718263852285,0.51,151.97,151.87,8.32]
[1718263852614,8.32,151.92,151.87,8.32]
[1718263852783,8.32,151.93,151.86,8.32]
[1718263852983,8.32,151.93,151.87,8.32]
[1718263855331,20.17,151.97,151.88,0.17]
[1718263855493,20.17,151.97,151.88,8.49]
[1718263855494,8.32,151.94,151.88,8.49]
[1718263856603,8.32,151.93,151.88,8.32]
[1718263856909,20.0,151.97,151.86,0.17]
[1718263857122,8.32,151.94,151.88,8.32]
[1718263857489,20.0,151.97,151.85,10.26372468]
[1718263857490,59.49,151.97,151.85,9.75372468]
[1718263857689,8.32,151.92,151.86,8.32]
[1718263857990,8.32,151.92,151.84,26.33802468]
[1718263857991,8.32,151.92,151.85,0.17]
[1718263858194,8.32,151.92,151.84,26.33802468]
[1718263858195,8.32,151.92,151.86,8.32]
[1718263858398,8.32,151.92,151.84,26.16802468]
[1718263858595,8.32,151.92,151.86,8.32]
[1718263860314,8.32,151.92,151.85,9.75372468]
[1718263860523,0.51,151.96,151.86,7.89967539]
[1718263860735,20.0,151.97,151.88,8.32]
[1718263861021,20.0,151.97,151.86,8.32]
[1718263861022,59.49,151.97,151.86,8.32]
[1718263861203,59.49,151.97,151.87,7.89971309]
[1718263861407,8.32,151.92,151.87,16.21971309]
[1718263861592,8.32,151.92,151.87,8.32]
[1718263862521,8.32,151.92,151.86,18.07278166]
[1718263862832,8.32,151.92,151.86,8.32]
[1718263863616,8.32,151.91,151.85,9.9249561]
[1718263863820,8.32,151.91,151.85,9.7549561]
[1718263864028,8.32,151.91,151.85,8.32]
[1718263865310,8.32,151.92,151.87,8.32]
[1718263865498,20.0,151.97,151.87,8.32]
[1718263865499,20.0,151.97,151.89,8.32]
[1718263865915,29.12441955,151.98,151.89,8.32]
[1718263866222,8.32,151.95,151.88,9.9249561]
[1718263866397,8.32,151.95,151.89,8.32]
[1718263866725,8.32,151.94,151.89,8.32]
[1718263867331,8.32,151.93,151.85,100.0]
[1718263867520,8.32,151.92,151.87,8.32]
[1718263867707,8.32,151.92,151.86,8.32]
[1718263867906,8.32,151.93,151.87,8.32]
[1718263869230,8.32,151.93,151.85,0.17]
[1718263869436,8.32,151.92,151.86,8.32]
[1718263869633,8.32,151.91,151.85,8.49]
[1718263870606,8.32,151.92,151.86,8.32]
[1718263870926,8.32,151.92,151.87,8.32]
[1718263871723,8.32,151.92,151.86,8.32]
[1718263872320,0.17,151.97,151.84,16.4143]
[1718263872321,8.32,151.9,151.84,16.4143]
[1718263872503,0.17,151.97,151.81,181.84844504]
[1718263872504,8.32,151.89,151.81,181.84844504]
[1718263872701,8.32,151.89,151.82,7.90145073]
[1718263872924,8.32,151.89,151.84,8.32]
[1718263873623,8.32,151.9,151.81,100.0]
[1718263873826,8.32,151.9,151.84,8.32]
[1718263874334,8.32,151.91,151.85,8.32]
[1718263874524,8.32,151.91,151.86,8.32]
[1718263875025,22.6572,151.92,151.86,8.32]
[1718263875241,496.0,152.02,151.83,100.34]
[1718263875242,21.7026,151.96,151.89,0.17]
[1718263875405,8.32,151.94,151.89,8.49]
[1718263875605,8.32,151.94,151.88,0.17]
[1718263875913,8.32,151.94,151.88,8.49]
[1718263876411,8.32,151.95,151.89,8.32]
[1718263877708,21.7026,151.96,151.89,8.32]
[1718263877912,8.32,151.94,151.89,8.32]
[1718263878309,6.4073,152.0,151.92,8.32]
[1718263878633,8.32,151.98,151.92,8.32]
[1718263879315,8.32,151.98,151.93,7.89651644]
[1718263880146,8.32,151.98,151.92,8.32]
[1718263881320,6.4073,152.0,151.92,8.32]
[1718263881521,8.32,151.98,151.92,8.32]
[1718263881719,8.32,151.98,151.93,8.32]
[1718263882021,8.32,151.99,151.93,8.32]
[1718263884022,258.24283409,152.03,151.95,8.32]
[1718263884534,8.32,152.01,151.95,8.32]
[1718263884851,258.24283409,152.03,151.94,0.34]
[1718263885028,8.32,152.0,151.94,8.32]
[1718263885931,297.75283409,152.03,151.93,15.0841]
[1718263886132,8.32,151.98,151.93,8.32]
[1718263886621,8.32,151.99,151.93,8.32]
[1718263886824,8.32,151.98,151.93,8.32]
[1718263887027,8.32,151.98,151.92,8.49]
[1718263887221,6.2251,151.99,151.89,24.44517486]
[1718263887421,22.2134,151.99,151.89,24.44517486]
[1718263887642,8.32,151.95,151.9,8.32]
[1718263888025,8.32,151.96,151.9,8.32]
[1718263888422,8.32,151.96,151.91,8.32]
[1718263890146,8.32,151.96,151.89,24.44517486]
[1718263890445,8.32,151.96,151.86,81.82149639]
[1718263890651,22.2134,151.99,151.87,7.89831953]
[1718263890652,8.32,151.95,151.87,7.89831953]
[1718263890948,8.32,151.95,151.89,8.32]
[1718263893331,8.32,151.95,151.9,8.32]
[1718263893529,8.32,151.96,151.9,8.32]
[1718263893931,22.2134,151.99,151.9,8.32]
[1718263894125,8.32,151.96,151.9,8.32]
[1718263894552,8.32,151.95,151.89,8.32]
[1718263898550,8.32,151.95,151.9,8.32]
[1718263898756,8.32,151.95,151.86,0.17]
[1718263898932,0.34,151.98,151.86,0.68]
[1718263899134,0.17,151.97,151.88,8.32]
[1718263899330,0.17,151.97,151.86,0.68]
[1718263899331,8.32,151.93,151.87,8.32]
[1718263899537,8.32,151.93,151.88,8.32]
[1718263900354,8.32,151.94,151.88,8.32]
[1718263904751,0.17,151.97,151.86,0.34]
[1718263904958,8.32,151.95,151.89,8.32]
[1718263905458,8.32,151.94,151.86,0.34]
[1718263905638,8.32,151.94,151.89,8.32]